bitfinex/quotes_BTCUSD_20250406
["timestamp","ask_amount","ask_price","bid_price","bid_amount"]
[1743937409082,0.2403302,82827.0,82826.0,0.6082257]
[1743937409279,0.0003302,82827.0,82826.0,0.6082257]
[1743937409479,0.0003302,82827.0,82826.0,0.57093749]
[1743937410528,0.0003302,82827.0,82826.0,0.60823629]
[1743937410890,0.0003302,82827.0,82826.0,0.56113629]
[1743937411089,0.0003302,82827.0,82826.0,0.52383749]
[1743937411295,0.0003302,82827.0,82826.0,0.52379749]
[1743937411495,0.0003302,82827.0,82826.0,0.56110492]
[1743937412426,0.0003302,82827.0,82826.0,0.42722492]
[1743937412611,0.0003302,82827.0,82826.0,0.56110492]
[1743937413040,0.0003302,82827.0,82826.0,0.52379749]
[1743937413414,0.0003302,82827.0,82826.0,0.56111648]
[1743937415206,0.0003302,82827.0,82826.0,0.56107648]
[1743937415815,0.0003302,82827.0,82826.0,0.42723648]
[1743937416016,0.0003302,82827.0,82826.0,0.54649563]
[1743937416317,0.0003302,82827.0,82826.0,0.38627367]
[1743937418232,0.0003302,82827.0,82826.0,0.25247367]
[1743937418477,0.0003302,82827.0,82826.0,0.38623367]
[1743937419389,0.0003302,82827.0,82826.0,0.4236402]
[1743937419571,0.0003302,82827.0,82826.0,0.38623367]
[1743937420138,0.2703302,82827.0,82826.0,0.38623367]
[1743937420435,0.0003302,82827.0,82826.0,0.38623367]
[1743937421722,0.0003302,82827.0,82826.0,0.42366938]
[1743937422331,0.0003302,82827.0,82826.0,0.28990938]
[1743937422488,0.0003302,82827.0,82826.0,0.42358938]
[1743937426034,0.0003302,82827.0,82826.0,0.54649235]
[1743937428249,0.0003302,82827.0,82826.0,0.5610332]
[1743937437983,0.0003302,82827.0,82826.0,0.4273532]
[1743937438164,0.0003302,82827.0,82826.0,0.5609132]
[1743937444811,0.0003302,82827.0,82826.0,0.9500132]
[1743937445014,0.0003302,82827.0,82826.0,0.9963132]
[1743937446722,0.0003302,82835.0,82827.0,0.35454085]
[1743937446928,0.0003302,82835.0,82829.0,0.35454085]
[1743937447132,0.0003302,82835.0,82831.0,0.01454085]
[1743937447359,0.0003302,82835.0,82833.0,0.01454085]
[1743937447515,0.0003302,82835.0,82834.0,0.17729332]
[1743937447714,0.0003302,82835.0,82834.0,0.45465712]
[1743937447914,0.0003302,82835.0,82834.0,0.45224333]
[1743937448320,0.0003302,82835.0,82834.0,0.49994333]
[1743937449505,0.0003302,82835.0,82834.0,0.50094333]
[1743937449875,0.0003302,82835.0,82834.0,0.50194333]
[1743937450312,0.0003302,82835.0,82834.0,0.54894333]
[1743937451839,0.0003302,82835.0,82834.0,0.51361717]
[1743937455101,0.0003302,82835.0,82834.0,0.60005717]
[1743937455297,0.0003302,82835.0,82834.0,0.45424333]
[1743937455547,0.0003302,82835.0,82834.0,0.58768333]
[1743937458576,0.0903302,82835.0,82834.0,0.58768333]
[1743937458741,0.0003302,82835.0,82834.0,0.58768333]
[1743937462270,0.0003302,82835.0,82834.0,0.45424333]
[1743937462472,0.0003302,82835.0,82834.0,0.58764333]
[1743937463216,0.0003302,82835.0,82834.0,0.43970248]
[1743937463421,0.0003302,82835.0,82834.0,0.45019951]
[1743937463617,0.0003302,82835.0,82834.0,0.4127638]
[1743937463827,0.0003302,82835.0,82834.0,0.45030715]
[1743937465931,0.0003302,82835.0,82834.0,0.57321012]
[1743937473322,0.0003302,82835.0,82834.0,0.43981012]
[1743937473552,0.0003302,82835.0,82834.0,0.57325012]
[1743937474104,0.0961586,82852.0,82834.0,0.57325012]
[1743937474396,0.00013687,82849.0,82835.0,0.03995735]
[1743937474575,0.00013687,82849.0,82836.0,0.03754335]
[1743937474780,0.00013687,82849.0,82837.0,0.002414]
[1743937474976,0.00013687,82849.0,82838.0,0.03754335]
[1743937475182,0.00013687,82849.0,82839.0,0.002414]
[1743937475380,0.00013687,82849.0,82839.0,0.27952894]
[1743937475617,0.00013687,82849.0,82839.0,0.27711494]
[1743937475933,0.00013687,82849.0,82840.0,0.002414]
[1743937476152,0.00013687,82849.0,82840.0,0.252414]
[1743937476315,0.00013687,82849.0,82841.0,0.00711494]
[1743937476513,0.00013687,82849.0,82841.0,0.28952894]
[1743937476860,0.00013687,82849.0,82841.0,0.41001791]
[1743937478017,0.00013687,82849.0,82842.0,0.00241379]
[1743937478204,0.00013687,82849.0,82842.0,0.26241379]
[1743937478362,0.00013687,82849.0,82842.0,0.26]
[1743937478567,0.00013687,82849.0,82843.0,0.00711494]
[1743937478796,0.00013687,82849.0,82843.0,0.25711494]
[1743937479208,0.00013687,82849.0,82844.0,0.00241379]
[1743937479415,0.00013687,82849.0,82844.0,0.27241379]
[1743937479587,0.00013687,82849.0,82845.0,0.00710016]
[1743937479766,0.00013687,82849.0,82845.0,0.27710016]
[1743937479966,0.00013687,82849.0,82845.0,0.27]
[1743937480205,0.00013687,82849.0,82846.0,0.00951395]
[1743937480487,0.00013687,82849.0,82846.0,0.28951395]
[1743937480645,0.00013687,82849.0,82846.0,0.28710016]
[1743937480865,0.00046707,82849.0,82847.0,0.00241379]
[1743937481051,0.00046707,82849.0,82847.0,0.24241379]
[1743937481460,0.00046707,82849.0,82848.0,0.00710016]
[1743937481667,0.00046707,82849.0,82848.0,0.25710016]
[1743937483914,0.25046707,82849.0,82848.0,0.25710016]
[1743937484091,0.00046707,82849.0,82848.0,0.25]
[1743937484298,0.00046707,82849.0,82848.0,0.25710553]
[1743937488897,0.00046707,82849.0,82848.0,0.57318935]
[1743937489096,0.00046707,82849.0,82848.0,0.61074998]
[1743937491275,0.00046707,82849.0,82848.0,0.61967284]
[1743937494028,0.00046707,82849.0,82848.0,0.66787284]
[1743937494643,0.00046707,82849.0,82848.0,0.66803784]
[1743937495746,0.0003302,82868.0,82848.0,0.66803784]
[1743937495747,0.0003302,82868.0,82849.0,0.01454085]
[1743937495990,0.0003302,82868.0,82852.0,0.01454085]
[1743937496346,0.0003302,82868.0,82854.0,0.01454085]
[1743937496520,0.0003302,82868.0,82856.0,0.01454085]
[1743937496747,0.0003302,82868.0,82858.0,0.01454085]
[1743937496901,0.0003302,82868.0,82859.0,0.12290297]
[1743937497102,0.0003302,82868.0,82860.0,0.00694935]
[1743937497304,0.0003302,82868.0,82861.0,0.12290297]
[1743937497611,0.0003302,82868.0,82862.0,0.1334]
[1743937497827,0.0003302,82868.0,82863.0,0.12290297]
[1743937497981,0.0003302,82868.0,82863.0,0.40290297]
[1743937498192,0.0003302,82868.0,82865.0,0.01454085]
[1743937498395,0.0003302,82868.0,82867.0,0.01454085]
[1743937498595,0.0003302,82868.0,82867.0,0.40744382]
[1743937498791,0.0003302,82868.0,82867.0,0.41422268]
[1743937499599,0.0003302,82868.0,82867.0,0.39968183]
[1743937500220,0.0003302,82868.0,82867.0,0.44758183]
[1743937500538,0.0003302,82868.0,82867.0,0.58098183]
[1743937500798,0.0003302,82868.0,82867.0,0.53308183]
[1743937501375,0.0003302,82868.0,82867.0,0.53408183]
[1743937502395,0.0003302,82868.0,82867.0,0.53308183]
[1743937503513,0.0003302,82868.0,82867.0,0.41017886]
[1743937508635,0.0003302,82868.0,82867.0,0.27677886]
[1743937508833,0.2303302,82868.0,82867.0,0.41013886]
[1743937509037,0.0003302,82868.0,82867.0,0.41013886]
[1743937510098,0.0003302,82868.0,82867.0,0.27677886]
[1743937511006,0.0948302,82868.0,82867.0,0.27677886]
[1743937516996,0.0948302,82868.0,82867.0,0.27681886]
[1743937517633,0.0453302,82868.0,82867.0,0.27681886]
[1743937517853,0.0003302,82868.0,82867.0,0.27681886]
[1743937531763,0.0003302,82868.0,82867.0,0.28813222]
[1743937535412,0.46323317,82868.0,82867.0,0.28813222]
[1743937540979,0.46223317,82868.0,82867.0,0.28813222]
[1743937547015,0.46256317,82868.0,82867.0,0.28813222]
[1743937548754,0.59596317,82868.0,82867.0,0.28813222]
[1743937557435,0.46256317,82868.0,82867.0,0.28813222]
[1743937557656,0.59596317,82868.0,82867.0,0.28813222]
[1743937558402,0.87596317,82868.0,82867.0,0.28813222]
[1743937558563,0.59596317,82868.0,82867.0,0.28813222]
[1743937559869,0.59596317,82868.0,82867.0,0.28829722]
[1743937563998,0.59596317,82868.0,82867.0,0.01829722]
[1743937564338,0.59596317,82868.0,82867.0,0.000205]
[1743937564543,0.59596317,82868.0,82867.0,0.230205]
[1743937564878,0.59596317,82868.0,82867.0,0.28848365]
[1743937565093,0.59596317,82868.0,82867.0,0.26848365]
[1743937565243,0.59596317,82868.0,82867.0,0.24848365]
[1743937565443,0.59596317,82868.0,82867.0,0.01848365]
[1743937565652,0.59596317,82868.0,82867.0,0.000205]
[1743937567280,0.59596317,82868.0,82867.0,0.240205]
[1743937567488,0.59596317,82868.0,82867.0,0.2884857]
[1743937567700,0.59596317,82868.0,82867.0,0.2484857]
[1743937567923,0.59596317,82868.0,82867.0,0.2684857]
[1743937568124,0.59596317,82868.0,82867.0,0.2484857]
[1743937568299,0.59596317,82868.0,82867.0,0.0184857]
[1743937568528,0.59596317,82868.0,82867.0,0.2884857]
[1743937569517,0.59596317,82868.0,82867.0,0.0184857]
[1743937569810,0.59596317,82868.0,82867.0,0.2784857]
[1743937569969,0.59596317,82868.0,82867.0,0.260205]
[1743937570201,0.59596317,82868.0,82867.0,0.250205]
[1743937570790,0.59596317,82868.0,82867.0,0.2684857]
[1743937570991,0.59596317,82868.0,82867.0,0.2484857]
[1743937571551,0.59596317,82868.0,82867.0,0.0184857]
[1743937571849,0.59596317,82868.0,82867.0,0.250205]
[1743937572063,0.59596317,82868.0,82867.0,0.2784857]
[1743937572554,0.59596317,82868.0,82867.0,0.0184857]
[1743937572697,0.59596317,82868.0,82867.0,0.2584857]
[1743937573054,0.59596317,82868.0,82867.0,0.0184857]
[1743937573267,0.59596317,82868.0,82867.0,0.280205]
[1743937573553,0.59596317,82868.0,82867.0,0.2484857]
[1743937574271,0.46256317,82868.0,82867.0,0.2484857]
[1743937574488,0.59596317,82868.0,82867.0,0.2484857]
[1743937575462,0.59596317,82868.0,82867.0,0.0184857]
[1743937575657,0.59596317,82868.0,82867.0,0.250205]
[1743937575882,0.59596317,82868.0,82867.0,0.26849007]
[1743937579954,0.46256317,82868.0,82867.0,0.26849007]
[1743937580167,0.46256317,82868.0,82867.0,0.36589007]
[1743937582661,0.34033,82868.0,82867.0,0.36589007]
[1743937582869,0.00033,82868.0,82867.0,0.347605]
[1743937583065,0.00033,82868.0,82867.0,0.36586698]
[1743937583276,0.00033,82868.0,82867.0,0.31816698]
[1743937583677,0.00033,82868.0,82867.0,0.26846698]
[1743937593355,0.00033,82868.0,82867.0,0.26846698]
[1743937594989,0.59033,82868.0,82867.0,0.26846698]
[1743937595264,0.34033,82868.0,82867.0,0.26846698]
[1743937598421,0.34033,82868.0,82867.0,0.36026698]
[1743937606125,0.34033,82868.0,82867.0,0.26846698]
[1743937607225,0.46323297,82868.0,82867.0,0.26846698]
[1743937609054,0.46323297,82868.0,82867.0,0.250205]
[1743937609382,0.46323297,82868.0,82867.0,0.26848736]
[1743937635407,0.46323297,82868.0,82867.0,0.01848736]
[1743937635605,0.46323297,82868.0,82867.0,0.24848736]
[1743937635808,0.46323297,82868.0,82867.0,0.000205]
[1743937636013,0.46323297,82868.0,82867.0,0.0185339]
[1743937636215,0.46323297,82868.0,82867.0,0.000205]
[1743937637301,0.46323297,82868.0,82867.0,0.280205]
[1743937637480,0.46323297,82868.0,82867.0,0.000205]
[1743937637625,0.46323297,82868.0,82867.0,0.0185339]
[1743937637831,0.46323297,82868.0,82867.0,0.000205]
[1743937638954,0.46323297,82868.0,82867.0,0.250205]
[1743937639154,0.46323297,82868.0,82867.0,0.000205]
[1743937639363,0.46323297,82868.0,82867.0,0.0185339]
[1743937639570,0.46323297,82868.0,82867.0,0.230205]
[1743937639774,0.46323297,82868.0,82867.0,0.270205]
[1743937639941,0.46323297,82868.0,82867.0,0.2985339]
[1743937640142,0.46323297,82868.0,82867.0,0.0185339]
[1743937640352,0.46323297,82868.0,82867.0,0.2485339]
[1743937640553,0.46323297,82868.0,82867.0,0.230205]
[1743937640798,0.46323297,82868.0,82867.0,0.2485339]
[1743937645850,0.72323297,82868.0,82867.0,0.2485339]
[1743937646156,0.46323297,82868.0,82867.0,0.2485339]
[1743937647050,0.46323297,82868.0,82867.0,0.0185339]
[1743937647573,0.46323297,82868.0,82867.0,0.280205]
[1743937647783,0.46323297,82868.0,82867.0,0.250205]
[1743937647999,0.46323297,82868.0,82867.0,0.26854417]
[1743937658465,0.46323297,82868.0,82867.0,0.25854417]
[1743937658965,0.46323297,82868.0,82867.0,0.26854417]
[1743937661092,0.4631847,82868.0,82867.0,0.26854417]
[1743937663085,0.4631847,82868.0,82867.0,0.01854417]
[1743937663295,0.4631847,82868.0,82867.0,0.24854417]
[1743937663437,0.4631847,82868.0,82867.0,0.230205]
[1743937663638,0.46323031,82868.0,82867.0,0.260205]
[1743937663875,0.46323031,82868.0,82867.0,0.27872373]
[1743937664082,0.46323031,82868.0,82867.0,0.01872373]
[1743937664458,0.46323031,82868.0,82867.0,0.000205]
[1743937666042,0.46323031,82868.0,82867.0,0.250205]
[1743937666237,0.46323031,82868.0,82867.0,0.000205]
[1743937666487,0.46323031,82868.0,82867.0,0.250205]
[1743937666662,0.46323031,82868.0,82867.0,0.000205]
[1743937666866,0.46323031,82868.0,82867.0,0.280205]
[1743937667082,0.46323031,82868.0,82867.0,0.29872373]
[1743937667404,0.46323031,82868.0,82867.0,0.01872373]
[1743937667806,0.46323031,82868.0,82867.0,0.000205]
[1743937668012,0.46323031,82868.0,82867.0,0.280205]
[1743937668215,0.46323031,82868.0,82867.0,0.000205]
[1743937668376,0.46323031,82868.0,82867.0,0.01872373]
[1743937668576,0.46323031,82868.0,82867.0,0.000205]
[1743937671071,0.70323031,82868.0,82867.0,0.000205]
[1743937671274,0.46323031,82868.0,82867.0,0.000205]
[1743937673070,0.46323031,82868.0,82867.0,0.260205]
[1743937673252,0.46323031,82868.0,82867.0,0.000205]
[1743937673778,0.46323031,82868.0,82867.0,0.250205]
[1743937674176,0.46323031,82868.0,82867.0,0.26872373]
[1743937676531,0.46323031,82868.0,82867.0,0.01872373]
[1743937676732,0.46323031,82868.0,82867.0,0.000205]
[1743937683896,0.70323031,82868.0,82867.0,0.000205]
[1743937684058,0.46323031,82868.0,82867.0,0.000205]
[1743937694894,0.59659031,82868.0,82867.0,0.260205]
[1743937695277,0.59659031,82868.0,82867.0,0.27873071]
[1743937696066,0.46323031,82868.0,82867.0,0.27873071]
[1743937696667,0.73323031,82868.0,82867.0,0.27873071]
[1743937696898,0.46323031,82868.0,82867.0,0.27873071]
[1743937702764,0.34032734,82868.0,82867.0,0.32673071]
[1743937702986,0.34032734,82868.0,82867.0,0.37323071]
[1743937705545,0.00032734,82868.0,82867.0,0.37323071]
[1743937709971,0.34032734,82868.0,82867.0,0.37323071]
[1743937719622,0.00032734,82868.0,82867.0,0.37323071]
[1743937722959,0.00032734,82868.0,82867.0,0.37323071]
[1743937739141,0.01405757,82874.0,82867.0,0.37323071]
[1743937741236,0.01405757,82874.0,82868.0,0.1253162]
[1743937741442,0.01405757,82874.0,82871.0,0.0956]
[1743937741643,0.01405757,82874.0,82872.0,0.16041777]
[1743937741940,0.01405757,82874.0,82873.0,0.1331148]
[1743937742096,0.01405757,82874.0,82873.0,0.51601777]
[1743937742342,0.01405757,82874.0,82873.0,0.4965268]
[1743937743763,0.01405757,82874.0,82873.0,0.37362383]
[1743937744115,0.01405757,82874.0,82873.0,0.32542383]
[1743937744317,0.01405757,82874.0,82873.0,0.27802383]
[1743937745865,0.00995757,82874.0,82873.0,0.27802383]
[1743937751243,0.00995757,82874.0,82873.0,0.27818883]
[1743937751738,0.01028757,82874.0,82873.0,0.27818883]
[1743937769733,0.47319054,82874.0,82873.0,0.27818883]
[1743937772049,0.47319054,82874.0,82873.0,0.01818883]
[1743937772425,0.47319054,82874.0,82873.0,0.000165]
[1743937773066,0.47319054,82874.0,82873.0,0.270165]
[1743937773271,0.47319054,82874.0,82873.0,0.25834443]
[1743937773484,0.47319054,82874.0,82873.0,0.01834443]
[1743937773681,0.47319054,82874.0,82873.0,0.230165]
[1743937773892,0.47319054,82874.0,82873.0,0.25838305]
[1743937774092,0.47319054,82874.0,82873.0,0.01838305]
[1743937774639,0.47319054,82874.0,82873.0,0.000165]
[1743937774989,0.47319054,82874.0,82873.0,0.260165]
[1743937775406,0.47319054,82874.0,82873.0,0.27838305]
[1743937775615,0.47319054,82874.0,82873.0,0.01838305]
[1743937776128,0.47319054,82874.0,82873.0,0.000165]
[1743937776675,0.51819054,82874.0,82873.0,0.000165]
[1743937778207,0.34,82873.0,82850.0,0.049175]
[1743937778510,0.34,82871.0,82850.0,0.30922061]
[1743937778731,0.34,82869.0,82851.0,0.0198339]
[1743937778902,0.34,82867.0,82851.0,0.2498339]
[1743937779106,0.34,82865.0,82851.0,0.2498339]
[1743937779342,0.34,82863.0,82851.0,0.2498339]
[1743937779479,0.34,82861.0,82851.0,0.2498339]
[1743937779663,0.12290297,82860.0,82851.0,0.2498339]
[1743937780290,0.02257698,82859.0,82851.0,0.2518339]
[1743937780486,0.34,82858.0,82851.0,0.2518339]
[1743937780692,0.02257698,82857.0,82851.0,0.2498339]
[1743937780900,0.02257698,82857.0,82851.0,0.2518339]
[1743937781353,0.02257698,82856.0,82851.0,0.2498339]
[1743937781990,0.34,82858.0,82851.0,0.2498339]
[1743937782268,0.34,82858.0,82851.0,0.2528339]
[1743937782585,0.34,82858.0,82851.0,0.2548339]
[1743937782871,0.34,82858.0,82851.0,0.2518339]
[1743937783066,0.34,82858.0,82851.0,0.2528339]
[1743937783566,0.34,82856.0,82851.0,0.2528339]
[1743937783772,0.12290297,82856.0,82851.0,0.2518339]
[1743937784539,0.12290297,82856.0,82851.0,0.2498339]
[1743937784881,0.34,82854.0,82851.0,0.2498339]
[1743937785058,0.34,82854.0,82851.0,0.2528339]
[1743937785223,0.02256013,82853.0,82851.0,0.2528339]
[1743937785429,0.02256013,82852.0,82851.0,0.2528339]
[1743937785671,0.02256013,82852.0,82851.0,0.2498339]
[1743937786069,0.02256013,82852.0,82851.0,0.2548339]
[1743937786291,0.4854631,82852.0,82851.0,0.2528339]
[1743937786514,0.4854631,82852.0,82851.0,0.2498339]
[1743937786859,0.4854631,82852.0,82851.0,0.2518339]
[1743937787083,0.4854631,82852.0,82851.0,0.2548339]
[1743937792482,0.4854631,82852.0,82851.0,0.2549989]
[1743937796685,0.48547297,82852.0,82851.0,0.2549989]
[1743937806268,0.48580297,82852.0,82851.0,0.2549989]
[1743937813939,0.48580297,82852.0,82851.0,0.2529989]
[1743937814363,0.48580297,82852.0,82851.0,0.2549989]
[1743937814570,0.48580297,82852.0,82851.0,0.2529989]
[1743937815369,0.48580297,82852.0,82851.0,0.2549989]
[1743937815582,0.48580297,82852.0,82851.0,0.2519989]
[1743937815995,0.48580297,82852.0,82851.0,0.2549989]
[1743937816410,0.48580297,82852.0,82851.0,0.2519989]
[1743937816836,0.48580297,82852.0,82851.0,0.2539989]
[1743937817027,0.48580297,82852.0,82851.0,0.2519989]
[1743937817232,0.48580297,82852.0,82851.0,0.2529989]
[1743937819059,0.46323297,82852.0,82851.0,0.2529989]
[1743937822934,0.48585581,82852.0,82851.0,0.2529989]
[1743937824173,0.48585581,82852.0,82851.0,0.2509989]
[1743937824583,0.48585581,82852.0,82851.0,0.2499989]
[1743937824786,0.48585581,82852.0,82851.0,0.2509989]
[1743937825147,0.48585581,82852.0,82851.0,0.2499989]
[1743937825592,0.48585581,82852.0,82851.0,0.2529989]
[1743937826872,0.48585581,82852.0,82851.0,0.2509989]
[1743937828002,0.48685581,82852.0,82851.0,0.2509989]
[1743937828807,0.48685581,82852.0,82851.0,0.2499989]
[1743937829149,0.48785581,82852.0,82851.0,0.2499989]
[1743937829825,0.48785581,82852.0,82851.0,0.0199989]
[1743937830224,0.48785581,82852.0,82851.0,0.000165]
[1743937830643,0.57139566,82852.0,82851.0,0.000165]
[1743937830850,0.57039566,82852.0,82851.0,0.000165]
[1743937831079,0.54877282,82852.0,82851.0,0.000165]
[1743937832210,0.54977282,82852.0,82851.0,0.000165]
[1743937832615,0.54877282,82852.0,82851.0,0.000165]
[1743937832788,0.54977282,82852.0,82851.0,0.000165]
[1743937834773,0.54877282,82852.0,82851.0,0.000165]
[1743937835141,0.54977282,82852.0,82851.0,0.000165]
[1743937835348,0.54877282,82852.0,82851.0,0.000165]
[1743937835617,0.0538,82850.0,82849.0,1e-08]
[1743937835822,0.66460382,82850.0,82849.0,1e-08]
[1743937836036,0.68718424,82850.0,82849.0,1e-08]
[1743937836458,0.71218424,82850.0,82849.0,1e-08]
[1743937837070,0.76098424,82850.0,82849.0,1e-08]
[1743937837797,0.76398424,82850.0,82849.0,1e-08]
[1743937838013,0.76098424,82850.0,82849.0,1e-08]
[1743937838288,0.76498424,82850.0,82849.0,1e-08]
[1743937838922,0.85432608,82850.0,82827.0,0.0001651]
[1743937839148,0.46290297,82834.0,82827.0,0.1001651]
[1743937839409,0.34,82832.0,82827.0,0.1001651]
[1743937839643,0.34,82830.0,82827.0,0.1001651]
[1743937839881,0.34,82828.0,82827.0,0.1001651]
[1743937840107,0.46290297,82828.0,82827.0,0.1001651]
[1743937840354,0.46790297,82828.0,82827.0,0.0001651]
[1743937840610,0.49048339,82828.0,82827.0,0.0001651]
[1743937840904,0.53928339,82828.0,82827.0,0.0001651]
[1743937841374,0.51670297,82828.0,82827.0,0.0001651]
[1743937841638,0.56550106,82828.0,82827.0,0.0001651]
[1743937842118,0.56650106,82828.0,82827.0,0.0001651]
[1743937842382,0.58905161,82828.0,82827.0,0.0001651]
[1743937842906,0.63785161,82828.0,82827.0,0.0001651]
[1743937843344,1.05035161,82828.0,82827.0,0.0001651]
[1743937843561,1.05235161,82828.0,82827.0,0.0001651]
[1743937844002,1.04935161,82828.0,82827.0,0.0001651]
[1743937844219,1.05235161,82828.0,82827.0,0.0001651]
[1743937844669,1.04935161,82828.0,82827.0,0.0001651]
[1743937844990,1.05535161,82828.0,82827.0,0.0001651]
[1743937845421,1.05835161,82828.0,82827.0,0.0001651]
[1743937846115,1.04935161,82828.0,82827.0,0.0001651]
[1743937846310,1.05235161,82828.0,82827.0,0.0001651]
[1743937846651,0.03,82819.0,82817.0,0.0001651]
[1743937846875,0.64084382,82819.0,82817.0,0.0001651]
[1743937847110,0.68924382,82819.0,82817.0,0.0001651]
[1743937847572,0.73179437,82819.0,82817.0,0.0001651]
[1743937848010,0.73190433,82819.0,82817.0,0.0001651]
[1743937848207,0.73590433,82819.0,82817.0,0.0001651]
[1743937849806,0.73890433,82819.0,82817.0,0.0001651]
[1743937850582,0.53756348,82819.0,82817.0,0.0001651]
[1743937850819,0.67096348,82819.0,82817.0,0.0001651]
[1743937851029,0.53756348,82819.0,82817.0,0.0001651]
[1743937851261,0.67096348,82819.0,82817.0,0.0001651]
[1743937851471,0.64841293,82819.0,82817.0,0.0001651]
[1743937852155,0.67089398,82819.0,82817.0,0.0001651]
[1743937853840,0.53749398,82819.0,82817.0,0.0001651]
[1743937854051,0.67089398,82819.0,82817.0,0.0001651]
[1743937857075,0.64589398,82819.0,82817.0,0.0001651]
[1743937857258,0.67089398,82819.0,82817.0,0.0001651]
[1743937857749,0.64589398,82819.0,82817.0,0.0001651]
[1743937857984,0.30589398,82819.0,82817.0,0.0001651]
[1743937858181,0.17249398,82819.0,82818.0,0.0493651]
[1743937858361,0.30589398,82819.0,82818.0,0.0970651]
[1743937858561,0.28589398,82819.0,82818.0,0.0970651]
[1743937858804,0.28589398,82819.0,82818.0,0.12554946]
[1743937859586,0.28289398,82819.0,82818.0,0.12554946]
[1743937860017,0.28589398,82819.0,82818.0,0.12554946]
[1743937860296,0.28289398,82819.0,82818.0,0.12554946]
[1743937860498,0.27889398,82819.0,82818.0,0.12554946]
[1743937860805,0.28189398,82819.0,82818.0,0.07634946]
[1743937861225,0.28189398,82819.0,82818.0,0.02864946]
[1743937861631,0.28189398,82819.0,82818.0,0.0001651]
[1743937862144,0.28489398,82819.0,82818.0,0.0001651]
[1743937863206,0.15149398,82819.0,82818.0,0.0001651]
[1743937863460,0.28489398,82819.0,82818.0,0.0001651]
[1743937863613,0.15149398,82819.0,82818.0,0.2301651]
[1743937863819,0.28489398,82819.0,82818.0,0.2301651]
[1743937864047,0.28489398,82819.0,82818.0,0.02865505]
[1743937864593,0.28489398,82819.0,82818.0,0.2501651]
[1743937864777,0.28489398,82819.0,82818.0,0.2401651]
[1743937865011,0.28489398,82819.0,82818.0,0.2586142]
[1743937865192,0.25641293,82819.0,82818.0,0.0286142]
[1743937865568,0.26041293,82819.0,82818.0,0.0001651]
[1743937865985,0.25841293,82819.0,82818.0,0.0001651]
[1743937866505,0.26041293,82819.0,82818.0,0.2501651]
[1743937866864,0.25641293,82819.0,82818.0,0.0286142]
[1743937867089,0.25841293,82819.0,82818.0,0.0286142]
[1743937867296,0.26041293,82819.0,82818.0,0.0001651]
[1743937867512,0.25841293,82819.0,82818.0,0.0001651]
[1743937867919,0.26041293,82819.0,82818.0,0.0001651]
[1743937868859,0.60041293,82819.0,82818.0,0.0001651]
[1743937870582,0.62541293,82819.0,82818.0,0.0001651]
[1743937870826,0.63041293,82819.0,82818.0,0.0001651]
[1743937872378,0.75751293,82819.0,82818.0,0.0001651]
[1743937872596,0.63041293,82819.0,82818.0,0.0001651]
[1743937873454,0.64495378,82819.0,82818.0,0.0001651]
[1743937873872,0.64295378,82819.0,82818.0,0.0001651]
[1743937874076,0.64095378,82819.0,82818.0,0.0001651]
[1743937874488,0.64295378,82819.0,82818.0,0.0001651]
[1743937874691,0.64095378,82819.0,82818.0,0.0001651]
[1743937875085,0.64295378,82819.0,82818.0,0.0001651]
[1743937875622,0.64495378,82819.0,82818.0,0.0001651]
[1743937876276,0.66956327,82819.0,82818.0,0.0001651]
[1743937876498,0.71746327,82819.0,82818.0,0.0001651]
[1743937876701,0.71546327,82819.0,82818.0,0.0001651]
[1743937877101,0.71946327,82819.0,82818.0,0.0001651]
[1743937877590,0.71146327,82819.0,82818.0,0.0001651]
[1743937877795,0.71546327,82819.0,82818.0,0.0001651]
[1743937877998,0.71746327,82819.0,82818.0,0.0001651]
[1743937878201,0.71546327,82819.0,82818.0,0.0001651]
[1743937878424,0.7908335,82819.0,82818.0,0.0001651]
[1743937878665,0.005,82805.0,82802.0,0.0001651]
[1743937878888,0.46290297,82803.0,82802.0,0.0001651]
[1743937879243,0.48551246,82803.0,82802.0,0.0001651]
[1743937879426,0.49034546,82803.0,82802.0,0.0001651]
[1743937879637,0.49933373,82803.0,82802.0,0.0001651]
[1743937880338,0.50033373,82803.0,82802.0,0.0001651]
[1743937881091,0.50133373,82803.0,82802.0,0.0001651]
[1743937881312,0.50033373,82803.0,82802.0,0.0001651]
[1743937881656,0.50133373,82803.0,82802.0,0.0001651]
[1743937882434,0.50033373,82803.0,82802.0,0.0001651]
[1743937882812,0.50133373,82803.0,82802.0,0.0001651]
[1743937883132,0.51322224,82803.0,82802.0,0.0001651]
[1743937883347,0.50738924,82803.0,82802.0,0.0001651]
[1743937883572,0.50838924,82803.0,82802.0,0.0001651]
[1743937883953,0.50738924,82803.0,82802.0,0.0001651]
[1743937884138,0.50638924,82803.0,82802.0,0.0001651]
[1743937884339,0.50838924,82803.0,82802.0,0.0001651]
[1743937884538,0.50738924,82803.0,82802.0,0.0001651]
[1743937884920,0.50838924,82803.0,82802.0,0.0001651]
[1743937885710,0.50638924,82803.0,82802.0,0.0001651]
[1743937886074,0.50738924,82803.0,82802.0,0.0001651]
[1743937886415,0.50638924,82803.0,82802.0,0.0001651]
[1743937887154,0.50738924,82803.0,82802.0,0.0001651]
[1743937887390,0.50838924,82803.0,82802.0,0.0001651]
[1743937887631,0.48577975,82803.0,82802.0,0.0001651]
[1743937887859,0.48677975,82803.0,82802.0,0.0001651]
[1743937894947,0.48577975,82803.0,82802.0,0.0001651]
[1743937895139,0.48377975,82803.0,82802.0,0.0001651]
[1743937895366,0.48477975,82803.0,82802.0,0.0001651]
[1743937895562,0.48677975,82803.0,82802.0,0.0001651]
[1743937898923,0.48477975,82803.0,82802.0,0.0001651]
[1743937899130,0.48377975,82803.0,82802.0,0.0001651]
[1743937899543,0.48577975,82803.0,82802.0,0.0001651]
[1743937899744,0.48777975,82803.0,82802.0,0.0001651]
[1743937900386,0.73777975,82803.0,82802.0,0.0001651]
[1743937900564,0.48777975,82803.0,82802.0,0.0001651]
[1743937905031,0.62121975,82803.0,82802.0,0.0001651]
[1743937916411,0.48777975,82803.0,82802.0,0.0001651]
[1743937916623,0.62121975,82803.0,82802.0,0.0001651]
[1743937916869,0.72927928,82803.0,82802.0,0.0001651]
[1743937921174,0.62121975,82803.0,82802.0,0.0001651]
[1743937925236,0.89121975,82803.0,82802.0,0.0001651]
[1743937925441,0.62121975,82803.0,82802.0,0.0001651]
[1743937930480,0.48777975,82803.0,82802.0,0.0001651]
[1743937930736,0.62121975,82803.0,82802.0,0.0001651]
[1743937937672,0.90121975,82803.0,82802.0,0.0001651]
[1743937937875,0.62121975,82803.0,82802.0,0.0001651]
[1743937940958,0.62621975,82803.0,82802.0,0.0001651]
[1743937941073,0.6657606,82803.0,82802.0,0.0001651]
[1743937941535,0.5323206,82803.0,82802.0,0.0001651]
[1743937941738,0.62621975,82803.0,82802.0,0.0001651]
[1743937941948,0.62221975,82803.0,82802.0,0.0001651]
[1743937942153,0.62321975,82803.0,82802.0,0.0001651]